[Event "*** Qualifier 4: Titled Tuesday 3|2 Blitz"]
[Site "Chess.com"]
[Date "2017.04.25"]
[Round "2"]
[White "Elshan1985"]
[Black "Fandorine"]
[Result "0-1"]
[WhiteElo "2489"]
[BlackElo "2698"]
[TimeControl "180+2"]
[EndTime "13:22:47 PDT"]
[Termination "Fandorine won by resignation"]

1. d4 {[%clk 0:03:02]} 1... Nf6 {[%clk 0:03:00.2]} 2. Nf3 {[%clk 0:03:03.5]}
2... b6 {[%clk 0:03:01.3]} 3. c4 {[%clk 0:03:04.3]} 3... Bb7 {[%clk 0:03:01.4]}
4. Nc3 {[%clk 0:03:05]} 4... e6 {[%clk 0:03:00.8]} 5. a3 {[%clk 0:03:06.1]} 5...
g6 {[%clk 0:03:01.5]} 6. Bg5 {[%clk 0:03:06.4]} 6... Bg7 {[%clk 0:03:01.6]} 7.
Qc2 {[%clk 0:03:07.1]} 7... h6 {[%clk 0:03:02.7]} 8. Bh4 {[%clk 0:03:07.3]} 8...
d6 {[%clk 0:03:03.9]} 9. e4 {[%clk 0:03:08.4]} 9... g5 {[%clk 0:03:05.1]} 10.
Bg3 {[%clk 0:03:08.8]} 10... Nh5 {[%clk 0:03:06.8]} 11. Rd1 {[%clk 0:03:06]}
11... Nd7 {[%clk 0:03:07.8]} 12. d5 {[%clk 0:03:03.4]} 12... Nxg3 {[%clk
0:02:45.7]} 13. hxg3 {[%clk 0:03:03.4]} 13... Qe7 {[%clk 0:02:46.4]} 14. Be2
{[%clk 0:03:03.7]} 14... a6 {[%clk 0:02:45.4]} 15. Nd4 {[%clk 0:03:04.2]} 15...
Ne5 {[%clk 0:02:22.3]} 16. Qa4+ {[%clk 0:03:00.2]} 16... Qd7 {[%clk 0:01:58.1]}
17. Qxd7+ {[%clk 0:02:46.2]} 17... Kxd7 {[%clk 0:01:58.8]} 18. f4 {[%clk
0:02:46.9]} 18... Ng6 {[%clk 0:01:57.5]} 19. Bh5 {[%clk 0:02:47.5]} 19... Bxd4
{[%clk 0:01:33.8]} 20. Rxd4 {[%clk 0:02:47.8]} 20... e5 {[%clk 0:01:35.4]} 21.
Rd2 {[%clk 0:02:43.6]} 21... exf4 {[%clk 0:01:31.5]} 22. O-O {[%clk 0:02:44.5]}
22... Ne5 {[%clk 0:01:08.8]} 23. gxf4 {[%clk 0:02:44.8]} 23... gxf4 {[%clk
0:01:10.7]} 24. Rxf4 {[%clk 0:02:44]} 24... Ke7 {[%clk 0:01:12.3]} 25. Rdf2
{[%clk 0:02:40.6]} 25... Rh7 {[%clk 0:01:09.6]} 26. Nd1 {[%clk 0:02:40]} 26...
Rg8 {[%clk 0:01:07.3]} 27. Ne3 {[%clk 0:02:40.5]} 27... Bc8 {[%clk 0:01:08.5]}
28. Be2 {[%clk 0:02:39.9]} 28... h5 {[%clk 0:01:01.3]} 29. Kh2 {[%clk
0:02:34.8]} 29... h4 {[%clk 0:00:59.6]} 30. b3 {[%clk 0:02:33.2]} 30... Rg3
{[%clk 0:00:50.4]} 31. Rxh4 {[%clk 0:02:22.5]} 31... Rxh4+ {[%clk 0:00:48.9]}
32. Kxg3 {[%clk 0:02:23.5]} 32... Rxe4 {[%clk 0:00:50.6]} 33. Nc2 {[%clk
0:02:09]} 33... Bg4 {[%clk 0:00:41.2]} 34. Bf1 {[%clk 0:02:01.4]} 34... Bd1
{[%clk 0:00:33.1]} 35. b4 {[%clk 0:01:30.8]} 35... Bxc2 {[%clk 0:00:20.6]} 36.
Rxc2 {[%clk 0:01:31.1]} 36... Re3+ {[%clk 0:00:22.2]} 37. Kf4 {[%clk 0:01:31.5]}
37... Rxa3 {[%clk 0:00:22.6]} 38. c5 {[%clk 0:01:32.8]} 38... Ra4 {[%clk
0:00:23.8]} 39. Kf5 {[%clk 0:01:27.7]} 39... Rxb4 {[%clk 0:00:20.1]} 40. cxb6
{[%clk 0:01:25.3]} 40... cxb6 {[%clk 0:00:21.2]} 41. Bxa6 {[%clk 0:01:25.4]}
41... Ng6 {[%clk 0:00:09.3]} 42. Rc7+ {[%clk 0:01:22.7]} 42... Kf8 {[%clk
0:00:10.1]} 43. g3 {[%clk 0:01:10.9]} 43... Ne7+ {[%clk 0:00:11.2]} 44. Kg5
{[%clk 0:01:08]} 44... Rd4 {[%clk 0:00:08.9]} 45. Bc4 {[%clk 0:00:59.5]} 45...
b5 {[%clk 0:00:09.7]} 46. Ba2 {[%clk 0:00:43.7]} 46... Rd2 {[%clk 0:00:10.6]}
47. Ra7 {[%clk 0:00:40.3]} 47... Rd3 {[%clk 0:00:08.9]} 48. g4 {[%clk
0:00:36.5]} 48... b4 {[%clk 0:00:10.4]} 49. Rb7 {[%clk 0:00:35.7]} 49... Rd2
{[%clk 0:00:06.2]} 50. Bb3 {[%clk 0:00:34]} 50... Rd4 {[%clk 0:00:07.6]} 51. Rd7
{[%clk 0:00:26.3]} 51... Rd3 {[%clk 0:00:09.1]} 52. Bc4 {[%clk 0:00:23.6]} 52...
Rc3 {[%clk 0:00:10.5]} 53. Be2 {[%clk 0:00:19.3]} 53... Re3 {[%clk 0:00:07.3]}
54. Bc4 {[%clk 0:00:19.2]} 54... Re4 {[%clk 0:00:06.7]} 55. Bb3 {[%clk
0:00:19.8]} 55... Re5+ {[%clk 0:00:06.7]} 56. Kh4 {[%clk 0:00:17.7]} 56... Ng6+
{[%clk 0:00:05.4]} 57. Kh3 {[%clk 0:00:17.8]} 57... Re3+ {[%clk 0:00:07]} 0-1

[Event "*** Qualifier 4: Titled Tuesday 3|2 Blitz"]
[Site "Chess.com"]
[Date "2017.04.25"]
[Round "2"]
[White "Gabrielian_Artur"]
[Black "IIIlllII1llIl"]
[Result "0-1"]
[WhiteElo "2581"]
[BlackElo "2545"]
[TimeControl "180+2"]
[EndTime "13:22:48 PDT"]
[Termination "IIIlllII1llIl won by checkmate"]

1. d4 {[%clk 0:03:02]} 1... Nf6 {[%clk 0:02:50]} 2. c4 {[%clk 0:03:00.4]} 2...
c5 {[%clk 0:02:45.4]} 3. d5 {[%clk 0:03:00.3]} 3... e6 {[%clk 0:02:46.8]} 4. Nc3
{[%clk 0:03:01]} 4... exd5 {[%clk 0:02:48.3]} 5. cxd5 {[%clk 0:03:02.1]} 5... d6
{[%clk 0:02:49.9]} 6. Nf3 {[%clk 0:03:00.9]} 6... g6 {[%clk 0:02:51.1]} 7. Bf4
{[%clk 0:03:00.5]} 7... Bg7 {[%clk 0:02:52]} 8. e3 {[%clk 0:03:00.9]} 8... O-O
{[%clk 0:02:52.5]} 9. h3 {[%clk 0:03:00.5]} 9... Na6 {[%clk 0:02:53.4]} 10. Be2
{[%clk 0:02:55.6]} 10... Nc7 {[%clk 0:02:54.4]} 11. O-O {[%clk 0:02:54.4]} 11...
a6 {[%clk 0:02:55.5]} 12. a4 {[%clk 0:02:54.9]} 12... Rb8 {[%clk 0:02:56.7]} 13.
a5 {[%clk 0:02:32.3]} 13... b5 {[%clk 0:02:57.7]} 14. axb6 {[%clk 0:02:32.1]}
14... Rxb6 {[%clk 0:02:58.8]} 15. Ra2 {[%clk 0:02:33.7]} 15... Nfxd5 {[%clk
0:02:59.8]} 16. Nxd5 {[%clk 0:02:17.7]} 16... Nxd5 {[%clk 0:03:01.7]} 17. Bg5
{[%clk 0:02:13.9]} 17... Qe8 {[%clk 0:03:01.3]} 18. Qc1 {[%clk 0:01:46.6]} 18...
Nb4 {[%clk 0:02:24]} 19. Ra3 {[%clk 0:01:47.2]} 19... Qc6 {[%clk 0:02:13.7]} 20.
Nd2 {[%clk 0:01:43.9]} 20... Be6 {[%clk 0:02:05]} 21. Nc4 {[%clk 0:01:38.7]}
21... Bxc4 {[%clk 0:02:03.4]} 22. Bxc4 {[%clk 0:01:39.4]} 22... d5 {[%clk
0:02:02.8]} 23. Be2 {[%clk 0:01:40.5]} 23... c4 {[%clk 0:01:54.5]} 24. Rd1
{[%clk 0:01:39.2]} 24... Qc5 {[%clk 0:01:48.3]} 25. Bf4 {[%clk 0:01:38.1]} 25...
Re8 {[%clk 0:01:45.2]} 26. Bf1 {[%clk 0:01:38.3]} 26... Ra8 {[%clk 0:01:22.5]}
27. e4 {[%clk 0:01:30.6]} 27... Bxb2 {[%clk 0:00:48.3]} 28. Qxb2 {[%clk
0:01:22.1]} 28... Nd3 {[%clk 0:00:49.3]} 29. Qa2 {[%clk 0:01:02.3]} 29... Nxf4
{[%clk 0:00:45.6]} 30. exd5 {[%clk 0:01:02.8]} 30... c3 {[%clk 0:00:43.5]} 31.
Rb3 {[%clk 0:00:48.5]} 31... Rab8 {[%clk 0:00:35.9]} 32. Rxb6 {[%clk 0:00:48.4]}
32... Rxb6 {[%clk 0:00:37.8]} 33. Qa4 {[%clk 0:00:37.3]} 33... c2 {[%clk
0:00:29.9]} 34. Rc1 {[%clk 0:00:37.7]} 34... Nxd5 {[%clk 0:00:23.4]} 35. Rxc2
{[%clk 0:00:37.6]} 35... Qd6 {[%clk 0:00:21.7]} 36. Qd4 {[%clk 0:00:36.9]} 36...
Nf6 {[%clk 0:00:22]} 37. Qxd6 {[%clk 0:00:33.8]} 37... Rxd6 {[%clk 0:00:23.9]}
38. Ra2 {[%clk 0:00:35]} 38... Rd1 {[%clk 0:00:25.1]} 39. Rxa6 {[%clk
0:00:35.9]} 39... Ne4 {[%clk 0:00:24.7]} 40. g3 {[%clk 0:00:19.4]} 40... Nd2
{[%clk 0:00:25.8]} 41. Kg2 {[%clk 0:00:20.8]} 41... Rxf1 {[%clk 0:00:25.6]} 42.
Rd6 {[%clk 0:00:21.5]} 42... Rd1 {[%clk 0:00:26.4]} 43. h4 {[%clk 0:00:21.6]}
43... Kg7 {[%clk 0:00:23.1]} 44. g4 {[%clk 0:00:22.6]} 44... h6 {[%clk
0:00:21.3]} 45. g5 {[%clk 0:00:23.2]} 45... hxg5 {[%clk 0:00:22.3]} 46. hxg5
{[%clk 0:00:24.5]} 46... Kf8 {[%clk 0:00:23.6]} 47. f4 {[%clk 0:00:25.5]} 47...
Nc4 {[%clk 0:00:22.3]} 48. Rxd1 {[%clk 0:00:21.4]} 48... Ne3+ {[%clk 0:00:23.5]}
49. Kf3 {[%clk 0:00:22.8]} 49... Nxd1 {[%clk 0:00:25.4]} 50. Ke4 {[%clk
0:00:24.3]} 50... Nf2+ {[%clk 0:00:24.7]} 51. Kf3 {[%clk 0:00:25.2]} 51... Nd3
{[%clk 0:00:25.2]} 52. Ke4 {[%clk 0:00:26.6]} 52... Nc5+ {[%clk 0:00:26.5]} 53.
Ke5 {[%clk 0:00:27.7]} 53... Ne6 {[%clk 0:00:23.1]} 54. f5 {[%clk 0:00:28.7]}
54... gxf5 {[%clk 0:00:25]} 55. Kxf5 {[%clk 0:00:29.6]} 55... Kg7 {[%clk
0:00:25.2]} 56. Kg4 {[%clk 0:00:30.9]} 56... Kg6 {[%clk 0:00:26.1]} 57. Kh4
{[%clk 0:00:32.3]} 57... Nxg5 {[%clk 0:00:28]} 58. Kg4 {[%clk 0:00:33.6]} 58...
f5+ {[%clk 0:00:29.3]} 59. Kf4 {[%clk 0:00:35.2]} 59... Ne6+ {[%clk 0:00:30]}
60. Kf3 {[%clk 0:00:36.7]} 60... Kg5 {[%clk 0:00:31.2]} 61. Kg3 {[%clk
0:00:38.3]} 61... f4+ {[%clk 0:00:33.1]} 62. Kf3 {[%clk 0:00:39.8]} 62... Nd4+
{[%clk 0:00:34.3]} 63. Kf2 {[%clk 0:00:40.1]} 63... Kg4 {[%clk 0:00:36.2]} 64.
Kg2 {[%clk 0:00:41.5]} 64... f3+ {[%clk 0:00:38.1]} 65. Kf2 {[%clk 0:00:43]}
65... Nf5 {[%clk 0:00:37.8]} 66. Kf1 {[%clk 0:00:44.4]} 66... Kg3 {[%clk
0:00:38.4]} 67. Kg1 {[%clk 0:00:45.8]} 67... f2+ {[%clk 0:00:39.9]} 68. Kf1
{[%clk 0:00:47.3]} 68... Ne3+ {[%clk 0:00:41.4]} 69. Ke2 {[%clk 0:00:48.7]}
69... f1=Q+ {[%clk 0:00:43]} 70. Kxe3 {[%clk 0:00:50.2]} 70... Qe1+ {[%clk
0:00:43.8]} 71. Kd3 {[%clk 0:00:51.4]} 71... Kf4 {[%clk 0:00:44.8]} 72. Kd4
{[%clk 0:00:52.4]} 72... Qd2+ {[%clk 0:00:46]} 73. Kc4 {[%clk 0:00:53.7]} 73...
Ke5 {[%clk 0:00:47.1]} 74. Kc5 {[%clk 0:00:55.2]} 74... Qc3+ {[%clk 0:00:48.1]}
75. Kb5 {[%clk 0:00:56.7]} 75... Kd6 {[%clk 0:00:49.1]} 76. Kb6 {[%clk 0:00:58]}
76... Qb4+ {[%clk 0:00:50.2]} 77. Ka6 {[%clk 0:00:59.6]} 77... Kc7 {[%clk
0:00:50.6]} 78. Ka7 {[%clk 0:01:01.1]} 78... Qa4# {[%clk 0:00:52]} 0-1

[Event "*** Qualifier 4: Titled Tuesday 3|2 Blitz"]
[Site "Chess.com"]
[Date "2017.04.25"]
[Round "2"]
[White "SergeiAza"]
[Black "ViIIagra"]
[Result "1-0"]
[WhiteElo "2664"]
[BlackElo "2493"]
[TimeControl "180+2"]
[EndTime "13:22:55 PDT"]
[Termination "SergeiAza won by resignation"]

1. e4 {[%clk 0:03:02]} 1... c5 {[%clk 0:02:59.8]} 2. Nf3 {[%clk 0:03:02.7]} 2...
d6 {[%clk 0:03:01.4]} 3. d4 {[%clk 0:03:03.6]} 3... cxd4 {[%clk 0:03:03.3]} 4.
Nxd4 {[%clk 0:03:04.8]} 4... Nf6 {[%clk 0:03:05]} 5. Nc3 {[%clk 0:03:06.4]} 5...
Nc6 {[%clk 0:03:06.8]} 6. Bc4 {[%clk 0:03:06.4]} 6... Qb6 {[%clk 0:03:06.2]} 7.
Nb3 {[%clk 0:03:06.7]} 7... e6 {[%clk 0:03:05.9]} 8. Bf4 {[%clk 0:03:07.8]} 8...
Ne5 {[%clk 0:03:02.2]} 9. Be2 {[%clk 0:03:09.1]} 9... a6 {[%clk 0:03:03.3]} 10.
g4 {[%clk 0:03:09.1]} 10... Qc7 {[%clk 0:02:20.8]} 11. g5 {[%clk 0:03:09.1]}
11... Nfd7 {[%clk 0:02:21.5]} 12. Be3 {[%clk 0:03:01.7]} 12... b5 {[%clk
0:02:12.3]} 13. Qd4 {[%clk 0:02:58.4]} 13... Bb7 {[%clk 0:02:08.6]} 14. O-O-O
{[%clk 0:02:52.4]} 14... Rc8 {[%clk 0:01:34]} 15. Kb1 {[%clk 0:02:44.7]} 15...
Nc5 {[%clk 0:01:18.9]} 16. f4 {[%clk 0:02:25.1]} 16... Nc6 {[%clk 0:01:14.6]}
17. Qd2 {[%clk 0:01:53.2]} 17... b4 {[%clk 0:01:08.4]} 18. Nxc5 {[%clk
0:01:46.2]} 18... bxc3 {[%clk 0:01:07.2]} 19. Qxc3 {[%clk 0:01:47.7]} 19... dxc5
{[%clk 0:01:08]} 20. f5 {[%clk 0:01:13.6]} 20... Qe5 {[%clk 0:00:49.3]} 21. Qb3
{[%clk 0:01:09.1]} 21... Rb8 {[%clk 0:00:47.6]} 22. Qa4 {[%clk 0:00:49.5]} 22...
Be7 {[%clk 0:00:34.5]} 23. Rhf1 {[%clk 0:00:45.1]} 23... Ba8 {[%clk 0:00:34.3]}
24. b3 {[%clk 0:00:34.1]} 24... Rb4 {[%clk 0:00:26]} 25. Qxa6 {[%clk 0:00:30.6]}
25... Bb7 {[%clk 0:00:22.6]} 26. Qd3 {[%clk 0:00:28.4]} 26... O-O {[%clk
0:00:22.3]} 27. f6 {[%clk 0:00:29]} 27... gxf6 {[%clk 0:00:21.6]} 28. gxf6
{[%clk 0:00:29.9]} 28... Bxf6 {[%clk 0:00:23.5]} 29. Rxf6 {[%clk 0:00:28.9]}
29... Qxf6 {[%clk 0:00:25.4]} 30. Bxc5 {[%clk 0:00:27.6]} 30... Rd8 {[%clk
0:00:21.6]} 31. Qg3+ {[%clk 0:00:25.6]} 31... Kh8 {[%clk 0:00:20.9]} 32. Rxd8+
{[%clk 0:00:21.3]} 32... Qxd8 {[%clk 0:00:10.9]} 33. Bxb4 {[%clk 0:00:22.3]}
33... Nxb4 {[%clk 0:00:06.2]} 34. Qc3+ {[%clk 0:00:23]} 34... Kg8 {[%clk
0:00:07.7]} 35. Qxb4 {[%clk 0:00:24.4]} 35... Qc7 {[%clk 0:00:09.6]} 36. Bd3
{[%clk 0:00:24.2]} 36... Ba8 {[%clk 0:00:09.3]} 37. Qc4 {[%clk 0:00:21.9]} 37...
Qb8 {[%clk 0:00:06]} 38. a4 {[%clk 0:00:20.6]} 38... Kf8 {[%clk 0:00:07.4]} 39.
a5 {[%clk 0:00:19.7]} 39... Ke7 {[%clk 0:00:08.8]} 40. h4 {[%clk 0:00:17.8]}
40... Qa7 {[%clk 0:00:08.8]} 41. Qb4+ {[%clk 0:00:18.3]} 41... Kf6 {[%clk
0:00:09.9]} 42. Qb6 {[%clk 0:00:17.8]} 42... Qxb6 {[%clk 0:00:08.9]} 43. axb6
{[%clk 0:00:18.3]} 43... Bb7 {[%clk 0:00:10.8]} 44. Kb2 {[%clk 0:00:12.8]} 44...
Ke5 {[%clk 0:00:12.1]} 45. b4 {[%clk 0:00:13.8]} 45... f5 {[%clk 0:00:11]} 46.
exf5 {[%clk 0:00:14.6]} 46... exf5 {[%clk 0:00:12.9]} 47. Kb3 {[%clk 0:00:15.6]}
47... h6 {[%clk 0:00:14.3]} 48. c4 {[%clk 0:00:16.2]} 48... f4 {[%clk
0:00:15.9]} 49. c5 {[%clk 0:00:14]} 49... Kd4 {[%clk 0:00:17.3]} 50. Bf1 {[%clk
0:00:13.7]} 50... Bc6 {[%clk 0:00:18.1]} 51. b5 {[%clk 0:00:13.7]} 51... Kxc5
{[%clk 0:00:19.1]} 52. bxc6 {[%clk 0:00:14]} 52... Kxc6 {[%clk 0:00:20.8]} 53.
Kc4 {[%clk 0:00:13.8]} 53... Kxb6 {[%clk 0:00:22.4]} 54. Kd5 {[%clk 0:00:15.3]}
54... Kc7 {[%clk 0:00:24.1]} 55. Ke6 {[%clk 0:00:16.3]} 55... Kd8 {[%clk
0:00:25.8]} 56. Kf7 {[%clk 0:00:17]} 56... Kd7 {[%clk 0:00:26.1]} 57. h5 {[%clk
0:00:17.9]} 57... Kd8 {[%clk 0:00:26.1]} 58. Bc4 {[%clk 0:00:18.3]} 58... f3
{[%clk 0:00:27.1]} 59. Kg7 {[%clk 0:00:19.3]} 59... Ke7 {[%clk 0:00:27.7]} 60.
Kxh6 {[%clk 0:00:20.4]} 60... Kf8 {[%clk 0:00:15.1]} 61. Kh7 {[%clk 0:00:21]}
61... f2 {[%clk 0:00:16.1]} 62. h6 {[%clk 0:00:21.9]} 1-0

[Event "*** Qualifier 4: Titled Tuesday 3|2 Blitz"]
[Site "Chess.com"]
[Date "2017.04.25"]
[Round "2"]
[White "Bengalas"]
[Black "severomorskij"]
[Result "0-1"]
[WhiteElo "2440"]
[BlackElo "2654"]
[TimeControl "180+2"]
[EndTime "13:23:00 PDT"]
[Termination "severomorskij won by resignation"]

1. d4 {[%clk 0:02:49.8]} 1... Nf6 {[%clk 0:02:58.5]} 2. c4 {[%clk 0:02:48.4]}
2... e6 {[%clk 0:02:58.7]} 3. Nc3 {[%clk 0:02:44.7]} 3... Bb4 {[%clk 0:02:58.2]}
4. Qc2 {[%clk 0:02:45.4]} 4... d5 {[%clk 0:02:56.3]} 5. cxd5 {[%clk 0:02:45.2]}
5... exd5 {[%clk 0:02:56.9]} 6. Bg5 {[%clk 0:02:40.3]} 6... h6 {[%clk
0:02:52.4]} 7. Bxf6 {[%clk 0:02:39.6]} 7... Qxf6 {[%clk 0:02:52.9]} 8. Nf3
{[%clk 0:02:40.4]} 8... O-O {[%clk 0:02:36.6]} 9. e3 {[%clk 0:02:40]} 9... c6
{[%clk 0:02:30.8]} 10. Bd3 {[%clk 0:02:39.5]} 10... Bd6 {[%clk 0:02:31.1]} 11.
h3 {[%clk 0:02:20.4]} 11... Re8 {[%clk 0:02:28.2]} 12. O-O-O {[%clk 0:02:20.3]}
12... Na6 {[%clk 0:01:52.5]} 13. Bxa6 {[%clk 0:01:29.3]} 13... bxa6 {[%clk
0:01:51.3]} 14. Na4 {[%clk 0:01:30]} 14... Bf5 {[%clk 0:01:50.2]} 15. Qc3 {[%clk
0:01:31.1]} 15... Be4 {[%clk 0:01:21.4]} 16. Nc5 {[%clk 0:01:15.5]} 16... Bxf3
{[%clk 0:01:11.2]} 17. gxf3 {[%clk 0:01:16.6]} 17... Bxc5 {[%clk 0:00:59.4]} 18.
Qxc5 {[%clk 0:01:16.7]} 18... Qxf3 {[%clk 0:00:59.8]} 19. Qc2 {[%clk 0:01:14.8]}
19... Re6 {[%clk 0:00:55.6]} 20. Kb1 {[%clk 0:01:13.3]} 20... Rf6 {[%clk
0:00:56.1]} 21. Rh2 {[%clk 0:01:14.2]} 21... Rb8 {[%clk 0:00:56.5]} 22. Rc1
{[%clk 0:01:13.5]} 22... Rb6 {[%clk 0:00:54.1]} 23. Qd3 {[%clk 0:01:08.5]} 23...
g6 {[%clk 0:00:52.3]} 24. h4 {[%clk 0:01:07.3]} 24... h5 {[%clk 0:00:52.6]} 25.
Rg1 {[%clk 0:01:05.3]} 25... Kg7 {[%clk 0:00:50.3]} 26. Rg3 {[%clk 0:01:05.5]}
26... Qe4 {[%clk 0:00:40.2]} 27. Qxe4 {[%clk 0:01:06.5]} 27... dxe4 {[%clk
0:00:41.2]} 28. Rg1 {[%clk 0:01:01.8]} 28... Rb5 {[%clk 0:00:36.4]} 29. Rc1
{[%clk 0:01:02.6]} 29... Rbf5 {[%clk 0:00:31.7]} 30. Rc2 {[%clk 0:01:03.6]}
30... a5 {[%clk 0:00:32.5]} 31. Kc1 {[%clk 0:01:04.4]} 31... c5 {[%clk
0:00:30.5]} 32. dxc5 {[%clk 0:01:03.4]} 32... Rc6 {[%clk 0:00:29.7]} 33. Rh1
{[%clk 0:00:59.7]} 33... Rfxc5 {[%clk 0:00:29.1]} 34. Rxc5 {[%clk 0:01:00.8]}
34... Rxc5+ {[%clk 0:00:30.3]} 35. Kd2 {[%clk 0:01:02.4]} 35... Rd5+ {[%clk
0:00:23.2]} 36. Ke2 {[%clk 0:01:03.4]} 36... Rb5 {[%clk 0:00:24.2]} 37. Rb1
{[%clk 0:00:50.8]} 37... a4 {[%clk 0:00:24.4]} 38. b3 {[%clk 0:00:43.9]} 38...
axb3 {[%clk 0:00:25]} 39. axb3 {[%clk 0:00:44.6]} 39... a5 {[%clk 0:00:23.2]}
40. Ra1 {[%clk 0:00:44.6]} 40... g5 {[%clk 0:00:17.9]} 41. hxg5 {[%clk
0:00:45.1]} 41... Rxg5 {[%clk 0:00:17.7]} 42. Ra4 {[%clk 0:00:44.7]} 42... Re5
{[%clk 0:00:17.3]} 43. Kf1 {[%clk 0:00:45.7]} 43... Kg6 {[%clk 0:00:11.7]} 44.
Kg2 {[%clk 0:00:44.6]} 44... Rb5 {[%clk 0:00:07.6]} 45. Kg3 {[%clk 0:00:32.9]}
45... f6 {[%clk 0:00:05.5]} 46. Kf4 {[%clk 0:00:27.2]} 46... Rf5+ {[%clk
0:00:05.3]} 47. Kg3 {[%clk 0:00:28.1]} 47... Rg5+ {[%clk 0:00:06.3]} 48. Kh2
{[%clk 0:00:25.7]} 48... Rb5 {[%clk 0:00:07.2]} 49. Kg3 {[%clk 0:00:25.3]} 49...
Kg5 {[%clk 0:00:08.5]} 50. Kh3 {[%clk 0:00:22.7]} 50... f5 {[%clk 0:00:07.7]}
51. Kg3 {[%clk 0:00:20.8]} 51... h4+ {[%clk 0:00:08.9]} 52. Kh3 {[%clk 0:00:22]}
52... Kh5 {[%clk 0:00:09.8]} 53. Ra2 {[%clk 0:00:19.2]} 53... Kg5 {[%clk
0:00:08.9]} 54. Ra4 {[%clk 0:00:18.8]} 54... Rxb3 {[%clk 0:00:06.9]} 55. Rxa5
{[%clk 0:00:19.8]} 55... Rb2 {[%clk 0:00:08.4]} 56. Kg2 {[%clk 0:00:20.4]} 56...
Kg4 {[%clk 0:00:09]} 57. Ra8 {[%clk 0:00:20]} 57... h3+ {[%clk 0:00:10.3]} 58.
Kg1 {[%clk 0:00:20.1]} 58... Kf3 {[%clk 0:00:10.7]} 59. Rf8 {[%clk 0:00:19.6]}
59... h2+ {[%clk 0:00:09.5]} 60. Kxh2 {[%clk 0:00:19.8]} 60... Rxf2+ {[%clk
0:00:10.4]} 61. Kg1 {[%clk 0:00:20.3]} 61... Kxe3 {[%clk 0:00:11.1]} 0-1

[Event "*** Qualifier 4: Titled Tuesday 3|2 Blitz"]
[Site "Chess.com"]
[Date "2017.04.25"]
[Round "2"]
[White "Cayse"]
[Black "Blitzstream"]
[Result "1-0"]
[WhiteElo "2634"]
[BlackElo "2449"]
[TimeControl "180+2"]
[EndTime "13:23:00 PDT"]
[Termination "Cayse won by checkmate"]

1. e4 {[%clk 0:03:02]} 1... g6 {[%clk 0:02:55.2]} 2. d4 {[%clk 0:03:02.1]} 2...
Bg7 {[%clk 0:02:56]} 3. Nc3 {[%clk 0:03:02.7]} 3... e6 {[%clk 0:02:56]} 4. f4
{[%clk 0:02:59.8]} 4... Ne7 {[%clk 0:02:57]} 5. Nf3 {[%clk 0:03:00.3]} 5... d6
{[%clk 0:02:58.1]} 6. Bd3 {[%clk 0:03:00.4]} 6... b6 {[%clk 0:02:59.2]} 7. O-O
{[%clk 0:03:00.8]} 7... Bb7 {[%clk 0:03:00.4]} 8. Qe2 {[%clk 0:02:59.6]} 8...
Nd7 {[%clk 0:03:01.5]} 9. e5 {[%clk 0:02:58.4]} 9... d5 {[%clk 0:02:56.8]} 10.
Qf2 {[%clk 0:02:52.9]} 10... a6 {[%clk 0:02:56.7]} 11. Ne2 {[%clk 0:02:53.7]}
11... c5 {[%clk 0:02:56.6]} 12. c3 {[%clk 0:02:54.6]} 12... Nc6 {[%clk
0:02:57.3]} 13. Kh1 {[%clk 0:02:52.1]} 13... Qc7 {[%clk 0:02:52.6]} 14. b3
{[%clk 0:02:44.7]} 14... h6 {[%clk 0:02:24.2]} 15. Be3 {[%clk 0:02:44.1]} 15...
c4 {[%clk 0:02:03.8]} 16. bxc4 {[%clk 0:02:27.6]} 16... dxc4 {[%clk 0:02:04.6]}
17. Bc2 {[%clk 0:02:24.4]} 17... Ne7 {[%clk 0:02:03.9]} 18. Ng3 {[%clk
0:02:25.2]} 18... Nd5 {[%clk 0:01:56.6]} 19. Ne4 {[%clk 0:02:25.7]} 19... Bf8
{[%clk 0:01:57.3]} 20. a4 {[%clk 0:02:21.3]} 20... Be7 {[%clk 0:01:57.7]} 21.
Bc1 {[%clk 0:02:13.9]} 21... Qc6 {[%clk 0:01:49.4]} 22. Ba3 {[%clk 0:02:05.2]}
22... Nxf4 {[%clk 0:01:34.4]} 23. Bxe7 {[%clk 0:02:04.3]} 23... Kxe7 {[%clk
0:01:35.3]} 24. Qh4+ {[%clk 0:01:40.8]} 24... g5 {[%clk 0:01:30]} 25. Nfxg5
{[%clk 0:01:41.3]} 25... Nxg2 {[%clk 0:01:03.1]} 26. Rxf7+ {[%clk 0:01:38.8]}
26... Ke8 {[%clk 0:01:03.3]} 27. Qh5 {[%clk 0:01:11.8]} 27... Kd8 {[%clk
0:00:53.2]} 28. Kxg2 {[%clk 0:01:04.6]} 28... Kc7 {[%clk 0:00:28.2]} 29. Nf3
{[%clk 0:00:58.5]} 29... Raf8 {[%clk 0:00:28.4]} 30. Rf1 {[%clk 0:00:53.4]}
30... b5 {[%clk 0:00:16.1]} 31. a5 {[%clk 0:00:38]} 31... b4 {[%clk 0:00:16.4]}
32. cxb4 {[%clk 0:00:38.6]} 32... c3 {[%clk 0:00:18.3]} 33. Rxf8 {[%clk
0:00:35.4]} 33... Rxf8 {[%clk 0:00:19.2]} 34. Qxh6 {[%clk 0:00:35.8]} 34... Qb5
{[%clk 0:00:20]} 35. Qe3 {[%clk 0:00:34.4]} 35... Qxb4 {[%clk 0:00:18.9]} 36.
Qxc3+ {[%clk 0:00:34.3]} 36... Qxc3 {[%clk 0:00:20.4]} 37. Nxc3 {[%clk
0:00:35.6]} 37... Nb8 {[%clk 0:00:22.3]} 38. Be4 {[%clk 0:00:36]} 38... Bc8
{[%clk 0:00:23.7]} 39. d5 {[%clk 0:00:36.1]} 39... Rg8+ {[%clk 0:00:25.6]} 40.
Kf2 {[%clk 0:00:36.5]} 40... Nd7 {[%clk 0:00:26.6]} 41. d6+ {[%clk 0:00:36.9]}
41... Kd8 {[%clk 0:00:27.6]} 42. Ke3 {[%clk 0:00:32.7]} 42... Rf8 {[%clk
0:00:27.9]} 43. Rg1 {[%clk 0:00:29.2]} 43... Rh8 {[%clk 0:00:28.5]} 44. Rg7
{[%clk 0:00:26.7]} 44... Nc5 {[%clk 0:00:29.3]} 45. Ne2 {[%clk 0:00:25.8]} 45...
Bd7 {[%clk 0:00:28.1]} 46. Ned4 {[%clk 0:00:26]} 46... Rh3 {[%clk 0:00:25.4]}
47. Rg8+ {[%clk 0:00:26]} 47... Be8 {[%clk 0:00:26.9]} 48. Bg6 {[%clk
0:00:21.9]} 48... Nb7 {[%clk 0:00:24.1]} 49. Nxe6+ {[%clk 0:00:19.9]} 49... Kd7
{[%clk 0:00:25.3]} 50. Nf4 {[%clk 0:00:20]} 50... Rh6 {[%clk 0:00:21.7]} 51.
Bxe8+ {[%clk 0:00:20.3]} 51... Kc8 {[%clk 0:00:22.5]} 52. Bb5+ {[%clk
0:00:20.8]} 52... Nd8 {[%clk 0:00:22.8]} 53. Bxa6+ {[%clk 0:00:22.2]} 53... Kd7
{[%clk 0:00:24.3]} 54. Bb5+ {[%clk 0:00:23.2]} 54... Kc8 {[%clk 0:00:25.6]} 55.
Rxd8+ {[%clk 0:00:23.9]} 55... Kxd8 {[%clk 0:00:26.4]} 56. a6 {[%clk 0:00:24.9]}
56... Rh7 {[%clk 0:00:26.9]} 57. d7 {[%clk 0:00:25.6]} 57... Rh6 {[%clk
0:00:25.7]} 58. a7 {[%clk 0:00:26]} 58... Rc6 {[%clk 0:00:20.5]} 59. Bxc6 {[%clk
0:00:25.8]} 59... Ke7 {[%clk 0:00:21]} 60. d8=Q+ {[%clk 0:00:24]} 60... Kf7
{[%clk 0:00:22.4]} 61. Qe8+ {[%clk 0:00:23]} 61... Kg7 {[%clk 0:00:23.7]} 62.
Qe7+ {[%clk 0:00:23.8]} 62... Kh6 {[%clk 0:00:24.4]} 63. Qf6+ {[%clk 0:00:24.3]}
63... Kh7 {[%clk 0:00:26.2]} 64. Be4+ {[%clk 0:00:24.3]} 64... Kg8 {[%clk
0:00:27.1]} 65. Bd5+ {[%clk 0:00:25.1]} 65... Kh7 {[%clk 0:00:28.4]} 66. Qg6+
{[%clk 0:00:26.2]} 66... Kh8 {[%clk 0:00:29.5]} 67. Qg8# {[%clk 0:00:27.2]} 1-0